Cogmind - Beta 14 @@@ ROGUE MODE // 2025.03.01 @ 16:38:52 Player: Cog on my mind Result: Self-destructed Performance ------------- Evolutions (9) 4500 Regions Visited (33) 6600 Robots Destroyed (503) 2515 Value Destroyed (22653) 22653 Prototype IDs (87) 1740 Alien Tech Used (2) 400 Bonus (16129) 16129 TOTAL SCORE: 54537 Bonus ------- Triggered High Security 500 Triggered Max Security 1000 High Alert Combat Kills 7083 Follower Combat Kills 3893 Aligned with FarCom 300 Met Zhirov 300 Built Enhanced Grunts 300 A7 Reached Mainframe 300 Met R17 at Cetus 500 Met R17 at Research 2000 Scanned by Researcher 500 Friendly Fire -547 Cogmind --------- Core Integrity 216/1600 Matter 108/300 Energy 23/100 System Corruption 40% Temperature Cool (0) Movement Walking (85) Location -1/Command Parts ------- > --- POWER (3) -------- (None) > --- PROPULSION (8) --- Centrium-Antigrav Exoskeleton > --- UTILITY (9) ------ High-capacity Storage Unit Improved Armor Integrity Analyzer > --- WEAPON (5) ------- Gravity Flail > --- INVENTORY (20) --- Advanced Cryofiber Web Huge Storage Unit Compact Matter Pod (51) Matter Compressor (0) Advanced Signal Interpreter Matter Filter Precision Energy Filter Particle Accelerator Quantum Capacitor Advanced Weapon Cycler Improved Reaction Control System Improved Utility Shielding Thermal Barrier Advanced Force Field Antimissile System Advanced Remote Datajack Peak State ------------ > --- POWER ------------ Particle-Ion Reactor > --- PROPULSION ------- Centrium-Antigrav Exoskeleton > --- UTILITY ---------- Armored Scrap Engine 2N-1CE's Frost Array High-capacity Storage Unit Long-range Terrain Scanner Advanced Terrain Scan Processor Experimental Targeting Computer Improved Armor Integrity Analyzer System Mapper > --- WEAPON ----------- Ragnarok Missile Launcher Hvy. Kinetic Rail Construct/C > --- INVENTORY -------- Advanced Cryofiber Web Huge Storage Unit Compact Matter Pod Matter Compressor Advanced Signal Interpreter Precision Energy Filter Particle Accelerator Quantum Capacitor Advanced Weapon Cycler Improved Reaction Control System Improved Utility Shielding Thermal Barrier Advanced Force Field Antimissile System Advanced Trap Extractor Ragnarok Missile Launcher Advanced Remote Datajack [Rating: 200] Favorites ----------- Power Constructs Engine Ion Engine Power Core Light Nuclear Core Reactor Constructs Propulsion Constructs Treads Advanced Treads Leg Constructs Wheel Wheel Hover Unit Aerolev Unit Utility High-capacity Storage Unit Device Armored Scrap Engine Storage High-capacity Storage Unit Processor Experimental Targeting Computer Hackware Hacking Suite Protection Light Armor Plating Weapon Constructs Energy Gun Heavy Particle Gun Energy Cannon Particle Cannon Ballistic Gun Assault Rifle Ballistic Cannon Constructs Launcher Micro-nuke Launcher Special Weapon Plasma Cutter Impact Weapon Shock Maul Slashing Weapon Power Sword Build | -11 -10 -10 -9 -9 -9 -8 -8 -8 -8 -6 -6 -6 -6 -6 -6 -6 -5 -5 -5 -5 -5 -5 -4 -4 -4 -4 -4 -3 -3 -2 -2 -1 -1 ------- Run | Yrd Mat Min Mat Min Exi Min Mat Sto Rec Fac Was Fac Ext Cet Arc Hub Fac Was Fac Upp Upp War Pro Fac Upp Upp Zhi Pro Res Res Tes Acc Com Slots Evolved 18 | . . . 2 . . . 2 . . 4 . . . . . . 2 . . . . . . 2 . . . . 2 2 . 2 . Power 2 | . . . . . . . . . . 1 . . . . . . . . . . . . . . . . . . . 1 . . . Propulsion 6 | . . . 1 . . . . . . 2 . . . . . . 1 . . . . . . 1 . . . . 1 . . . . Utility 7 | . . . 1 . . . 1 . . 1 . . . . . . . . . . . . . 1 . . . . 1 . . 2 . Weapon 3 | . . . . . . . 1 . . . . . . . . . 1 . . . . . . . . . . . . 1 . . . Parts Attached 296 | 7 13 3 30 . 2 5 25 19 2 10 . 2 2 . 8 11 11 2 20 13 2 . 8 23 4 4 4 14 26 6 3 7 10 Power 22 | 1 1 . 3 . . . 5 1 . . . . . . . . . . . . . . . 2 . . 1 4 4 . . . . Engine 6 | 1 1 . 1 . . . 2 1 . . . . . . . . . . . . . . . . . . . . . . . . . Core 6 | . . . 2 . . . 3 . . . . . . . . . . . . . . . . 1 . . . . . . . . . Reactor 10 | . . . . . . . . . . . . . . . . . . . . . . . . 1 . . 1 4 4 . . . . Propulsion 31 | 2 4 1 12 . . . 5 5 . 2 . . . . . . . . . . . . . . . . . . . . . . . Treads 22 | 2 3 1 12 . . . 3 1 . . . . . . . . . . . . . . . . . . . . . . . . . Leg 1 | . 1 . . . . . . . . . . . . . . . . . . . . . . . . . . . . . . . . Wheel 7 | . . . . . . . 2 3 . 2 . . . . . . . . . . . . . . . . . . . . . . . Hover 1 | . . . . . . . . 1 . . . . . . . . . . . . . . . . . . . . . . . . . Flight . | . . . . . . . . . . . . . . . . . . . . . . . . . . . . . . . . . . Utility 171 | 2 2 2 7 . 1 1 7 4 2 3 . 1 . . 7 9 8 2 15 9 2 . 5 21 4 4 3 10 22 5 3 6 4 Device 129 | 1 1 2 3 . . 1 2 1 1 1 . . . . 7 7 7 2 11 8 2 . 4 17 3 4 2 9 18 5 3 4 3 Storage 8 | 1 1 . 1 . 1 . . . . . . . . . . . . . 2 . . . . . . . 1 . 1 . . . . Processor 12 | . . . . . . . 1 . . 1 . . . . . . . . . 1 . . 1 3 1 . . 1 2 . . 1 . Hackware 13 | . . . . . . . 1 1 1 1 . 1 . . . 2 1 . 2 . . . . 1 . . . . 1 . . 1 . Protection 9 | . . . 3 . . . 3 2 . . . . . . . . . . . . . . . . . . . . . . . . 1 Artifact . | . . . . . . . . . . . . . . . . . . . . . . . . . . . . . . . . . . Weapon 72 | 2 6 . 8 . 1 4 8 9 . 5 . 1 2 . 1 2 3 . 5 4 . . 3 . . . . . . 1 . 1 6 Energy Gun 15 | 1 . . 3 . . . 6 5 . . . . . . . . . . . . . . . . . . . . . . . . . Energy Cannon 12 | . 1 . 4 . 1 2 1 1 . . . . . . . . . . . 2 . . . . . . . . . . . . . Ballistic Gun 6 | 1 3 . . . . . . 2 . . . . . . . . . . . . . . . . . . . . . . . . . Ballistic Cannon . | . . . . . . . . . . . . . . . . . . . . . . . . . . . . . . . . . . Launcher 25 | . 2 . 1 . . 2 1 . . 3 . . . . . 1 2 . 1 2 . . 3 . . . . . . 1 . 1 5 Special Weapon 3 | . . . . . . . . 1 . . . . 2 . . . . . . . . . . . . . . . . . . . . Impact Weapon 4 | . . . . . . . . . . 2 . 1 . . . . . . . . . . . . . . . . . . . . 1 Slashing Weapon 7 | . . . . . . . . . . . . . . . 1 1 1 . 4 . . . . . . . . . . . . . . Piercing Weapon . | . . . . . . . . . . . . . . . . . . . . . . . . . . . . . . . . . . Special Melee Weapon . | . . . . . . . . . . . . . . . . . . . . . . . . . . . . . . . . . . Unidentified Prototypes 26 | . . 1 2 . . . 1 2 1 1 . . . . . 4 . . 1 1 . . . 1 . . 3 . 5 . . 3 . Corrupted Parts 5 | . . . . . . . . . 1 . . . . . . 1 . . . . . . 2 1 . . . . . . . . . System Corruption 39 | . . . . . . . . . 2 . . . . . . 8 . . . . . . 19 10 . . . . . . . . . Parts Lost 45 | . 2 . 3 . . . 3 3 . 2 . . 1 . . 1 . . . . . . 1 5 . . . 1 1 1 2 . 19 Power 10 | . 1 . . . . . 1 1 . . . . 1 . . . . . . . . . . 2 . . . 1 . . . . 3 Propulsion 6 | . . . 1 . . . . 2 . . . . . . . . . . . . . . . . . . . . . . . . 3 Utility 18 | . 1 . 2 . . . 1 . . . . . . . . 1 . . . . . . 1 2 . . . . 1 1 1 . 7 Weapon 11 | . . . . . . . 1 . . 2 . . . . . . . . . . . . . 1 . . . . . . 1 . 6 Highest Loss Streak 6 | . 1 . 1 . . . 1 1 . 1 . . 1 . . 1 . . . . . . 1 2 . . . 1 1 1 1 . 6 To Critical Strikes 1 | . . . . . . . . . . . . . 1 . . . . . . . . . . . . . . . . . . . . Average Slot Usage (%) 59 | . 99 100 99 100 100 100 95 98 76 54 51 46 49 50 52 45 40 41 41 41 41 41 41 41 42 41 43 45 43 42 40 43 31 Engine 3 | . 14 14 6 . . . 2 9 3 5 1 . 2 1 . . 1 . 3 5 5 5 5 2 . . . . . . . . . Core 1 | . . . 4 11 11 11 5 . . . . . . . . 3 3 . . . . . . . . . . . . . . . . Reactor 2 | . . . . . . . . . 4 . 4 6 3 4 6 2 . 5 1 . . . . 1 5 5 6 8 6 4 4 3 2 Treads 7 | . 28 28 32 33 33 33 20 11 7 . . 2 . . . 2 . . . . . . . . . . . . . . . . . Leg 1 | . . . . . . . . . . . . . 1 6 6 3 2 . 1 . . . . 1 5 5 5 4 . . 1 2 4 Wheel 1 | . . . . . . . 6 14 8 5 . . . . . . . . . . . . . 3 . . . . . . . . . Device 11 | . 13 14 10 11 11 11 9 9 8 6 11 6 6 6 11 10 12 17 10 11 11 11 12 16 15 14 14 12 12 12 12 12 8 Storage 6 | . 14 14 11 11 11 11 9 9 9 6 6 6 6 6 6 6 5 5 5 5 5 5 5 5 5 5 5 5 4 4 4 4 4 Processor 3 | . . . . . . . 7 . . . 6 6 6 6 1 . . . . 4 5 5 3 3 4 5 5 7 8 8 8 10 6 Hackware 2 | . . . . . . . 1 9 9 9 . 6 6 6 6 8 3 . 4 . . . . . . . . . . . . 4 . Protection 2 | . . . 10 11 11 11 8 9 3 . . . . . . . . . . . . . . . . . . . . . . . . Energy Gun 3 | . 6 . 5 . . . 12 26 17 9 12 2 1 . . . . . . . . . . . . . . . . . . . . Energy Cannon 4 | . 7 14 15 22 22 21 11 . . . . 2 2 3 6 1 3 5 . . . . . 2 5 1 . . 1 3 2 2 . Ballistic Gun 1 | . 13 14 . . . . . . . . . . 1 2 . . . . . . . . . . . . . . . . . . . Ballistic Cannon 1 | . . . . . . . . . 3 1 . 1 1 4 . 4 1 . 4 5 5 5 5 3 . 3 5 4 2 . 1 1 3 Peak Build Rating 200 | 7 8 16 24 24 26 26 38 41 52 73 78 85 83 97 104 102 105 114 133 125 115 115 123 121 115 118 129 142 159 176 180 200 192 Average Rating 83 | 5 7 8 18 24 25 25 34 38 45 59 74 79 79 86 101 90 84 106 116 116 114 115 114 110 111 116 121 130 145 166 173 188 140 On Entrance 86 | . 7 8 9 24 24 26 26 37 38 52 73 75 80 77 97 100 91 105 110 111 115 115 115 116 115 111 118 129 142 152 168 172 188 Naked Turns . | . . . . . . . . . . . . . . . . . . . . . . . . . . . . . . . . . . Heaviest Build 147 | 14 21 21 37 37 57 57 66 67 65 71 71 74 76 79 86 87 94 75 85 95 72 72 94 105 70 74 92 125 127 112 109 123 147 Greatest Support 284 | 40 40 40 66 66 66 66 66 20 44 71 71 95 129 129 129 148 148 132 158 128 128 128 128 177 177 177 177 284 284 196 190 134 161 Greatest Overweight (x) 6 | . . . 1 . . . 5 6 5 6 . 1 . . . . . . . . . . . . . . . . . 1 . 1 1 Average Overweight (x) . | . . . . . . . 1 3 2 . . . . . . . . . . . . . . . . . . . . . . . . Largest Inventory Capacity 20 | 8 10 10 15 15 20 20 20 20 20 20 20 20 20 20 20 20 20 20 20 20 20 20 20 20 20 20 20 20 20 20 20 20 20 Average Capacity 18 | 7 8 10 11 15 15 20 20 20 20 20 20 20 20 20 20 20 20 20 20 20 20 20 20 20 20 20 20 20 20 20 20 20 20 Most Carried 20 | . 8 10 15 15 16 17 20 20 20 19 18 20 20 20 20 20 20 20 20 20 19 19 20 20 20 20 20 20 20 20 19 19 20 Average Carried 17 | . 5 8 10 15 15 16 19 19 18 15 16 19 18 19 19 17 19 19 19 19 19 19 19 19 19 19 18 19 19 18 17 17 19 Final Capacity 20 | 8 10 10 15 15 20 20 20 20 20 20 20 20 20 20 20 20 20 20 20 20 20 20 20 20 20 20 20 20 20 20 20 20 20 Final Carried 20 | . 7 10 15 15 16 17 20 20 17 15 18 20 20 20 18 16 19 20 20 19 19 19 20 20 20 18 20 18 20 18 18 18 17 Scrap Engine Consumption 464 | . . . . . . . . . 21 46 11 11 32 17 4 31 42 9 24 2 1 . 2 52 4 9 4 13 50 38 7 23 11 Constructs Created 12 | . . . . . . . . . 3 1 1 . . 1 . 1 . . . . . . . 3 . . . 1 . . . 1 . Constructs Modified 192 | . . . . . . . . . 4 20 1 8 9 9 1 12 22 4 12 1 . . 1 19 1 3 1 5 25 15 3 12 4 Class Distribution -------------------- 54% | Construct 14% | Mutant 10% | Commander-Construct 5% | Scavenger-Mutant 4% | Hacker-Construct 3% | Scavenger-Skirmisher 3% | Skirmisher Dominant Class ---------------- Mutant | -10/Materials Mutant | -10/Mines Scavenger-Mutant | -9/Materials Mutant | -9/Mines Mutant | -9/Exiles Mutant | -8/Mines Skirmisher | -8/Materials Scavenger-Skirmisher | -8/Storage Commander-Construct | -8/Recycling Construct | -6/Factory Construct | -6/Waste Construct | -6/Factory Commander-Construct | -6/Extension Commander-Construct | -6/Cetus Commander-Construct | -6/Archives Hacker-Construct | -6/Hub_04(d) Construct | -5/Factory Construct | -5/Waste Construct | -5/Factory Construct | -5/Upper Caves Construct | -5/Upper Caves Construct | -5/Warlord Construct | -4/Proximity Caves Construct | -4/Factory Construct | -4/Upper Caves Construct | -4/Upper Caves Construct | -4/Zhirov Construct | -3/Proximity Caves Construct | -3/Research Construct | -2/Research Construct | -2/Testing Hacker-Construct | -1/Access Construct | -1/Command Resources | -11 -10 -10 -9 -9 -9 -8 -8 -8 -8 -6 -6 -6 -6 -6 -6 -6 -5 -5 -5 -5 -5 -5 -4 -4 -4 -4 -4 -3 -3 -2 -2 -1 -1 ----------- Run | Yrd Mat Min Mat Min Exi Min Mat Sto Rec Fac Was Fac Ext Cet Arc Hub Fac Was Fac Upp Upp War Pro Fac Upp Upp Zhi Pro Res Res Tes Acc Com Matter Collected 14805 | 237 299 78 438 . . 350 486 224 34 829 166 153 223 68 141 356 441 55 419 238 124 . 377 2428 94 107 . 443 430 1011 278 2409 1869 Remotely 150 | . . . . . . . . . . . . . . . . . . . . . . . . 150 . . . . . . . . . Salvage Created 25891 | 44 777 156 1084 . . 308 1716 866 177 2209 1555 403 424 93 371 887 1027 . 678 218 . . 443 2966 . . . 1000 794 2431 478 2108 2678 Parts 1027 | 4 55 11 47 . . 29 91 51 10 52 7 12 9 2 26 35 55 . 30 15 . . 26 114 . . . 41 29 79 21 81 95 Haulers Intercepted 33 | . 1 . 2 . . . 4 . . 3 . . . . . 5 . . 4 1 . . . 4 . . . . 3 3 . 3 . Recyclers Shooed 7 | . . . . . . . 1 . . 3 . . . . . . . . . . . . . 3 . . . . . . . . . Parts Field Recycled . | . . . . . . . . . . . . . . . . . . . . . . . . . . . . . . . . . . Retrieved Matter . | . . . . . . . . . . . . . . . . . . . . . . . . . . . . . . . . . . Parts Self-Destructed 85 | . . . . . . . . . . . . . . . . . . . . 24 5 . 19 . . . . 37 . . . . . Prevented 2 | . . . . . . . . . . . . . . . . . . . . 1 . . . . . . . 1 . . . . . Kills | -11 -10 -10 -9 -9 -9 -8 -8 -8 -8 -6 -6 -6 -6 -6 -6 -6 -5 -5 -5 -5 -5 -5 -4 -4 -4 -4 -4 -3 -3 -2 -2 -1 -1 ------- Run | Yrd Mat Min Mat Min Exi Min Mat Sto Rec Fac Was Fac Ext Cet Arc Hub Fac Was Fac Upp Upp War Pro Fac Upp Upp Zhi Pro Res Res Tes Acc Com Combat Hostiles Destroyed 376 | . 16 3 19 . . 17 26 17 3 39 6 7 8 1 1 11 20 . 4 8 . . 11 36 . . . 13 5 26 11 15 53 Melee 1 | . . . . . . . . . . . . . . . . . 1 . . . . . . . . . . . . . . . . Guns 50 | . 8 2 8 . . . 8 15 3 2 . . 3 1 . . . . . . . . . . . . . . . . . . . Cannons 164 | . 4 1 10 . . 3 11 . . 6 . 3 2 . 1 7 14 . 4 1 . . 4 25 . . . 13 5 16 3 15 16 AOE 108 | . 4 . . . . 12 5 . . 12 . . . . . 4 4 . . 7 . . 7 4 . . . . . 5 8 . 36 Classes Destroyed 25 | 1 7 1 2 . . . 2 . 1 2 1 . . . . 1 1 . . . . . 1 . . . . 1 . 1 . . 3 Worker 15 | . 3 1 . . . . 3 3 . 1 . . . . . . . . . . . . . . . . . . . . . . 4 Builder 9 | . . . 1 . . . 3 1 . 3 . . 1 . . . . . . . . . . . . . . . . . . . . Tunneler 6 | 3 1 . . . . 1 1 . . . . . . . . . . . . . . . . . . . . . . . . . . Hauler 33 | . 1 . 2 . . . 4 . . 3 . . . . . 5 . . 4 1 . . . 4 . . . . 3 3 . 3 . Recycler 9 | . 1 . . . . . 2 . . 1 . . . . . . . . . . . . . 3 . . . . . . . 2 . Carrier 1 | . . . . . . . . . . . . . . . . . . . . . . . . . . . . . . . . . 1 Minesweeper 1 | . . . . . . . . . . . . . . . . . . . . . . . . . . . . 1 . . . . . Mechanic 8 | . . . . . . . . . . 2 . . . . . . . . . . . . . 1 . . . 1 . . 1 1 2 Operator 15 | . 2 . 2 . . . . . . 1 . . . . 9 1 . . . . . . . . . . . . . . . . . Drone 2 | . . . . . . . . . . . . . . . . . . . . . . . 2 . . . . . . . . . . Watcher 31 | . 3 . 3 . . . 4 . . 2 . 2 . 1 . . 2 . . . . . . 4 . . . . 1 5 1 1 2 Swarmer 79 | . 5 . . . . 11 . 3 . 7 . . . . . 5 2 . . 7 . . 4 15 . . . 4 . 5 4 . 7 Saboteur 3 | . . . . . . . . . . . . . . . . . 1 . . . . . . . . . . . . . . . 2 Grunt 141 | . 11 2 12 . . 5 18 4 . 16 . 2 6 . . 2 10 . 1 1 . . . 7 . . . 4 . 8 5 3 24 Brawler 16 | . . . 2 . . 1 1 . . 3 . . . . . . . . . . . . 1 . . . . 1 . 1 . 2 4 Duelist 10 | . . . . . . . 1 . . 1 . . . . . . . . . . . . 1 . . . . 2 . . . . 5 Protector 2 | . . . . . . . . . . . . . . . . . . . . . . . . . . . . . . . . . 2 Sentry 54 | . . 1 5 . . . 5 10 2 5 . 4 2 . 1 2 2 . 1 . . . 1 3 . . . 1 4 3 . 1 1 Specialist 2 | . . . . . . . . . . . . . . . . . . . . . . . . . . . . . . 2 . . . Hunter 17 | . . . . . . . 1 . . 2 . . . . . . . . 1 . . . 2 4 . . . . . 2 . 3 2 Programmer 40 | . . . . . . . . . . 6 . 1 . . . 1 5 . 1 . . . . 7 . . . . 1 5 2 5 6 Behemoth 3 | . . . . . . . . . . . . . . . . 1 . . . . . . . . . . . 1 . . . 1 . Compactor 6 | . . . . . . . . . . . 6 . . . . . . . . . . . . . . . . . . . . . . Cetus Guard 1 | . . . . . . . . . . . . . . 1 . . . . . . . . . . . . . . . . . . . Investigator 1 | . . . . . . . . . . . . . . . . . . . . . . . . . . . . . . . . . 1 Scrapper 1 | . . . . . . . . . 1 . . . . . . . . . . . . . . . . . . . . . . . . Surgeon 1 | . . . . . . . . . . . . . . . . . . . . . . . 1 . . . . . . . . . . Best Kill Streak 17 | 3 9 2 7 . . 10 12 8 1 7 6 2 3 1 5 5 6 . 1 4 . . 4 6 . . . 4 2 5 11 4 17 Combat Bots Only 15 | . 4 2 4 . . 10 8 6 1 6 6 2 3 1 1 5 6 . 1 4 . . 4 6 . . . 3 2 5 9 4 15 Max Kills in Single Turn 8 | 1 3 1 1 . . 3 3 2 1 2 1 1 1 1 1 4 1 . 1 3 . . 4 2 . . . 1 1 5 4 1 8 Gunslinging 1 | . . . . . . . 1 . . . . . . . . . . . . . . . . . . . . . . . . . . Exploded 8 | . 2 . . . . 3 2 . . 2 . . . . . 4 1 . . 3 . . 4 2 . . . . . 5 3 . 8 Melee 1 | . . . . . . . . . . . . . . . . . 1 . . . . . . . . . . . . . . . . Uniques/NPCs Destroyed . | . . . . . . . . . . . . . . . . . . . . . . . . . . . . . . . . . . Combat | -11 -10 -10 -9 -9 -9 -8 -8 -8 -8 -6 -6 -6 -6 -6 -6 -6 -5 -5 -5 -5 -5 -5 -4 -4 -4 -4 -4 -3 -3 -2 -2 -1 -1 -------- Run | Yrd Mat Min Mat Min Exi Min Mat Sto Rec Fac Was Fac Ext Cet Arc Hub Fac Was Fac Upp Upp War Pro Fac Upp Upp Zhi Pro Res Res Tes Acc Com Hostile Shots Fired 2724 | . 57 11 71 . . 39 68 46 2 294 . 81 110 25 1 99 97 . 24 15 3 . 41 304 . . . 101 5 73 104 262 791 Missed 936 | . 8 2 14 . . 17 14 9 1 133 . 30 42 10 1 36 35 . 9 8 . . 19 85 . . . 30 3 22 44 85 279 Damage Taken 33535 | . 538 166 800 . . 274 951 536 48 1967 . 474 1097 302 . 1023 1347 . 500 144 50 . 617 4046 . . . 1654 210 1035 1376 2723 11657 Core 3395 | . 112 43 78 . . 44 159 43 . 241 . 92 108 39 . 269 92 . . 18 15 . 60 407 . . . 80 . 57 54 106 1278 Absorbed by Shields 2508 | . . . . . . . . . . . . . 19 115 . . . . . . . . . 269 . . . . . 242 . 892 971 Redirected to Shielding 116 | . . . . . . . . . . . . . . . . . . . . . . . . . . . . . . . . . 116 Ignored by Resistances 6 | . . . . . . . . . . . . . . . . 6 . . . . . . . . . . . . . . . . . Regen/Repaired (Parts) 12882 | . . . . . . . . . 5 681 258 309 604 611 . 434 1377 58 217 46 . . 47 3365 . 46 . 493 354 260 625 1965 1127 Core Remaining (%) 66 | 100 . 38 . . . 69 . . 63 . . . . . . 11 . . . . . . 81 . . . . 57 100 . 83 . . Volleys Fired 1254 | 15 62 11 81 4 . 27 78 42 6 167 20 23 73 18 14 41 76 9 18 6 1 . 19 151 . 4 . 55 25 58 21 71 58 Largest 3 | 2 2 2 2 2 . 2 3 3 3 1 1 1 1 2 1 1 1 1 1 1 1 . 1 2 . 1 . 1 1 1 1 1 2 Hottest 339 | 70 80 80 136 136 . 136 191 171 171 84 55 85 85 139 146 226 226 226 339 339 293 . 164 195 . 73 . 97 97 85 103 103 140 Shots Fired 1628 | 30 121 22 161 8 . 41 188 115 14 166 20 21 68 26 14 41 74 9 17 6 1 . 19 151 . 4 . 54 25 58 21 71 62 Gun 569 | 30 94 11 80 . . . 88 115 12 74 20 4 31 9 . . . . . . . . . 1 . . . . . . . . . Cannon 978 | . 22 11 80 8 . 28 96 . 2 78 . 17 37 17 14 40 65 9 17 3 1 . 12 150 . 4 . 54 25 57 15 71 45 Launcher 81 | . 5 . 1 . . 13 4 . . 14 . . . . . 1 9 . . 3 . . 7 . . . . . . 1 6 . 17 Special . | . . . . . . . . . . . . . . . . . . . . . . . . . . . . . . . . . . Kinetic 453 | 15 57 11 8 . . . . 6 . . . 7 16 9 . 30 36 . 17 3 1 . 12 82 . 4 . 54 20 11 7 2 45 Thermal 1003 | 15 59 11 152 8 . 28 184 109 14 152 20 14 38 17 14 10 27 9 . . . . . 18 . . . . 4 23 8 69 . Explosive 81 | . 5 . 1 . . 13 4 . . 14 . . . . . 1 9 . . 3 . . 7 . . . . . . 1 6 . 17 Electromagnetic 91 | . . . . . . . . . . . . . 14 . . . 2 . . . . . . 51 . . . . 1 23 . . . Robot Hit Streak 26 | 7 9 7 17 3 . 6 14 10 11 13 8 15 13 7 2 14 15 9 10 2 . . 3 8 . . . 9 9 23 26 13 14 Robot Miss Streak 9 | 2 3 3 4 2 . 1 3 3 1 8 7 3 9 3 3 2 3 1 1 2 1 . 2 5 . . . 4 2 4 1 3 2 Penetration Max 2 | . . . . . . . . . . . . . . 1 . 1 . . . . . . . . . . . . . . . . 2 Secondary Targets 5 | . . . 2 . . . 1 2 . . . . . . . . . . . . . . . . . . . . . . . . . Max Gunslinging Chain 1 | . . . 1 . . . 1 1 . . . . . . . . . . . . . . . . . . . . . . . . . Shots Hit Robots 1127 | 19 74 12 106 4 . 20 120 67 10 164 19 21 65 21 18 31 44 8 19 2 . . 8 86 . . . 38 13 42 7 43 46 Core Hits 841 | 4 43 7 32 . . 23 69 31 6 189 16 33 67 9 9 21 25 . 19 9 . . 13 38 . . . 13 7 16 43 18 81 Critical Kills 22 | . . . . . . 2 . . . . . . . . . 4 5 . 1 1 . . 1 8 . . . . . . . . . Critical Parts Destroyed 26 | . . . . . . . . . . 6 . . . . . 4 4 . 3 . . . 1 8 . . . . . . . . . Critical Strikes 83 | 1 3 . 5 . . 2 6 4 . 7 . . . . . 9 10 2 6 1 . . 3 24 . . . . . . . . . Burn 25 | 1 3 . 5 . . . 6 4 . . . . . . . . . . . . . . . 6 . . . . . . . . . Meltdown 2 | . . . . . . 2 . . . . . . . . . . . . . . . . . . . . . . . . . . . Destroy 47 | . . . . . . . . . . 1 . . . . . 9 10 2 5 1 . . 3 16 . . . . . . . . . Blast 2 | . . . . . . . . . . . . . . . . . . . . . . . . 2 . . . . . . . . . Smash 6 | . . . . . . . . . . 6 . . . . . . . . . . . . . . . . . . . . . . . Sever 1 | . . . . . . . . . . . . . . . . . . . 1 . . . . . . . . . . . . . . Melee Attacks 49 | . . . . . . . . . . 12 . 2 . . 18 . . . 9 . . . . . . . . . . . . . 8 Impact 22 | . . . . . . . . . . 12 . 2 . . . . . . . . . . . . . . . . . . . . 8 Slashing 27 | . . . . . . . . . . . . . . . 18 . . . 9 . . . . . . . . . . . . . . Piercing . | . . . . . . . . . . . . . . . . . . . . . . . . . . . . . . . . . . Sneak Attacks 13 | . . . . . . . . . . 1 . . . . 9 . . . 3 . . . . . . . . . . . . . . Combat Hostiles . | . . . . . . . . . . . . . . . . . . . . . . . . . . . . . . . . . . Follow-up Attacks . | . . . . . . . . . . . . . . . . . . . . . . . . . . . . . . . . . . Damage Inflicted 83914 | 197 1252 194 1920 81 . 1011 3468 1359 184 4856 580 845 1583 509 1314 2488 3418 392 1939 970 . . 1626 7305 . . . 5335 2465 9134 3562 9145 16782 Guns 7413 | 197 604 108 990 . . . 1107 1359 156 1285 580 183 652 192 . . . . . . . . . . . . . . . . . . . Cannons 52722 | . 246 86 930 81 . 395 1371 . 28 1392 . 662 931 317 258 2207 2657 392 1200 211 . . 668 6845 . . . 5335 2465 8606 697 8997 5745 Explosions 21650 | . 402 . . . . 616 990 . . 1659 . . . . . 281 761 . 305 759 . . 958 460 . . . . . 528 2865 108 10958 Melee 2010 | . . . . . . . . . . 520 . . . . 1056 . . . 434 . . . . . . . . . . . . . . Ramming 119 | . . . . . . . . . . . . . . . . . . . . . . . . . . . . . . . . 40 79 Kinetic 26163 | 86 300 108 105 . . . . . . . . 261 239 192 . 1838 1592 . 1200 211 . . 668 3961 . . . 5335 2465 1148 506 203 5745 Thermal 29124 | 111 550 86 1815 81 . 433 2478 1359 184 2677 580 584 1092 317 258 369 1065 392 149 . . . . 1315 . . . . . 4072 191 8794 172 Explosive 20618 | . 402 . . . . 578 990 . . 1659 . . . . . 281 761 . . 759 . . 958 130 . . . . . 449 2865 . 10786 Electromagnetic 5880 | . . . . . . . . . . . . . 252 . . . . . 156 . . . . 1899 . . . . . 3465 . 108 . Impact 520 | . . . . . . . . . . 520 . . . . . . . . . . . . . . . . . . . . . . . Slashing 1490 | . . . . . . . . . . . . . . . 1056 . . . 434 . . . . . . . . . . . . . . Piercing . | . . . . . . . . . . . . . . . . . . . . . . . . . . . . . . . . . . Highest Corruption 40 | . 3 3 . . . . . 1 3 22 29 28 28 28 28 12 3 3 10 10 10 10 19 18 18 18 18 18 . 3 6 7 40 Average Corruption 10 | . 2 3 . . . . . 1 1 4 26 28 28 28 16 4 2 3 5 10 10 10 15 9 18 18 18 18 . 1 4 5 21 Corruption Purged 35 | . . . . . . . . . . 1 6 . . . 28 . . . . . . . . . . . . . . . . . . Corruption Blocked . | . . . . . . . . . . . . . . . . . . . . . . . . . . . . . . . . . . Effects 550 | . 10 14 . . . . . 11 10 16 6 34 66 24 31 19 14 7 32 20 20 1 . 37 27 35 5 32 . 6 10 15 48 Message Errors 145 | . . 4 . . . . . . 1 6 1 9 16 2 15 4 2 2 5 6 4 1 . 14 10 9 3 8 . 3 3 4 13 Matter Fused 145 | . 1 3 . . . . . 4 2 2 2 10 18 9 5 6 2 1 13 7 5 . . 8 9 10 . 7 . 2 3 5 11 Heat Flow Errors 54 | . 1 2 . . . . . 2 . 2 1 4 5 3 3 3 2 2 2 1 2 . . 4 2 3 1 3 . . 1 . 5 Energy Discharges 75 | . 1 2 . . . . . . 5 3 . 3 10 3 5 4 3 . 4 3 1 . . 3 4 6 1 6 . . . 3 5 Parts Rejected 5 | . . . . . . . . . . . . . 1 . . 1 . . 1 . . . . . . . . 1 . . 1 . . Parts Fused 4 | . . . . . . . . . . . . . . . . . . . . . 1 . . 1 . . . 2 . . . . . Data Loss (minor) 59 | . 1 2 . . . . . 4 2 . 1 5 3 2 3 1 1 2 4 2 4 . . 4 2 6 . 3 . 1 . 2 4 Data Loss (major) 23 | . . 1 . . . . . . . 2 . . 5 3 . . 2 . 2 . 2 . . 2 . . . 1 . . . 1 2 Misfires 6 | . 3 . . . . . . 1 . . . . . . . . . . . . . . . . . . . . . . 1 . 1 Alerts 10 | . 2 . . . . . . . . . 1 . 2 1 . . . . . 1 1 . . . . 1 . . . . . . 1 Misdirections 7 | . . . . . . . . . . . . 1 1 . . . . . . . . . . . . . . . . . . . 5 Weapon Failures 17 | . 1 . . . . . . . . 1 . 2 5 1 . . 2 . 1 . . . . 1 . . . 1 . . 1 . 1 Overload Shots . | . . . . . . . . . . . . . . . . . . . . . . . . . . . . . . . . . . Overflow Damage 11340 | . . . 10 . . 19 170 . . 294 . 1 . 2 287 172 265 . 138 44 . . 62 942 . . . 574 462 2622 329 2309 2638 Projectiles 9312 | . . . 10 . . 15 . . . . . 1 . 2 . 172 231 . 117 . . . 27 942 . . . 574 462 2457 329 2225 1748 Explosions 1456 | . . . . . . 4 170 . . 9 . . . . . . 34 . 21 44 . . 35 . . . . . . 165 . 84 890 Melee 572 | . . . . . . . . . . 285 . . . . 287 . . . . . . . . . . . . . . . . . . Knockbacks 49 | . . . . . . . . . . 1 . 5 2 . . 3 4 . 1 . . . 1 10 . . . 4 . 3 . 1 14 Impact 2 | . . . . . . . . . . 1 . . . . . . . . . . . . . . . . . . . . . 1 . Kinetic 45 | . . . . . . . . . . . . 5 2 . . 3 4 . 1 . . . 1 10 . . . 4 . 3 . . 12 Secondary 2 | . . . . . . . . . . . . . . . . . . . . . . . . . . . . . . . . . 2 Self-Inflicted Damage 1039 | . 8 . . . . . 13 . . 7 . . . . . 19 . . 98 . . . 180 234 . . . . . . . 39 441 Shots 17 | . 1 . . . . . 1 . . 1 . . . . . 1 . . 2 . . . 3 3 . . . . . . . 1 4 Rammed . | . . . . . . . . . . . . . . . . . . . . . . . . . . . . . . . . . . Targets Rammed 5 | . . . . . . . . . . . . . . . . . . . . . . . . . . . . . . . . 1 4 Kicked 5 | . . . . . . . . . . . . . . . . . . . . . . . . . . . . . . . . 1 4 Crushed . | . . . . . . . . . . . . . . . . . . . . . . . . . . . . . . . . . . Highest Temperature 530 | 130 324 255 321 78 . 261 319 235 96 407 193 259 250 328 334 530 483 283 508 467 272 . 284 372 180 249 95 225 20 2 85 . 343 Average Temperature 107 | 65 64 69 88 42 . 101 78 87 36 103 133 66 65 131 128 163 159 139 164 171 124 . 136 117 77 87 49 74 6 1 19 . 157 Received Heat Transfer 5051 | . 249 78 405 . . 81 414 162 18 477 . 141 399 43 . 207 339 . 90 45 . . 18 229 . . . 213 . 51 135 148 1109 Effects 31 | . . . . . . . . . . 3 . 1 . 1 1 7 3 . 3 2 . . 1 9 . . . . . . . . . Shutdowns 5 | . . . . . . . . . . 1 . . . . . 3 . . 1 . . . . . . . . . . . . . . Energy Bleed 8 | . . . . . . . . . . 1 . . . 1 1 . 3 . 1 . . . 1 . . . . . . . . . . Interference 10 | . . . . . . . . . . . . 1 . . . . . . . . . . . 9 . . . . . . . . . Matter Decay 5 | . . . . . . . . . . 1 . . . . . 2 . . 1 1 . . . . . . . . . . . . . Short Circuit 2 | . . . . . . . . . . . . . . . . 1 . . . 1 . . . . . . . . . . . . . Damage (core) 1 | . . . . . . . . . . . . . . . . 1 . . . . . . . . . . . . . . . . . Siege Activations . | . . . . . . . . . . . . . . . . . . . . . . . . . . . . . . . . . . Robots Corrupted 19 | . . . . . . . . . . 3 . . . . . . . . . . . . . 7 . . . . . 8 . . 1 Combat Hostiles 12 | . . . . . . . . . . 2 . . . . . . . . . . . . . 4 . . . . . 5 . . 1 Parts Fried 65 | . . . . . . . . . . 3 . . . . . . . . . . . . . 32 . . . 1 . 27 . . 2 Impact Corruptions 8 | . . . . . . . . . . 7 . . . . . . . . . . . . . . . . . . . . . . 1 Robots Melted 42 | . . . 1 . . 2 2 2 . 19 6 5 3 . . . . . . . . . . 2 . . . . . . . . . Combat Hostiles 39 | . . . 1 . . 2 2 2 . 17 6 4 3 . . . . . . . . . . 2 . . . . . . . . . Parts Melted 139 | . 1 1 11 . . 1 10 4 . 66 16 13 7 . . 2 1 . . . . . . 6 . . . . . . . . . Heat Transferred 44169 | 407 1628 185 4070 148 . 753 5069 2960 432 15122 3850 2257 4145 . 222 296 675 200 250 . . . . 1350 . . . . . 50 . . 100 Parts Sabotaged 3 | . . . . . . . . . . . . . . . . . 1 . . . . . . . . . . . . . . . 2 Parts Stolen . | . . . . . . . . . . . . . . . . . . . . . . . . . . . . . . . . . . Parts Stripped . | . . . . . . . . . . . . . . . . . . . . . . . . . . . . . . . . . . Power Chain Reactions 6 | . . . . . . . . . . . . . . . . . . . 1 . . . . 3 . . . . . 1 . . 1 Alert | -11 -10 -10 -9 -9 -9 -8 -8 -8 -8 -6 -6 -6 -6 -6 -6 -6 -5 -5 -5 -5 -5 -5 -4 -4 -4 -4 -4 -3 -3 -2 -2 -1 -1 ------- Run | Yrd Mat Min Mat Min Exi Min Mat Sto Rec Fac Was Fac Ext Cet Arc Hub Fac Was Fac Upp Upp War Pro Fac Upp Upp Zhi Pro Res Res Tes Acc Com Peak Influence 3424 | 15 538 201 506 124 . 503 457 391 281 975 341 444 567 573 428 1178 759 256 1192 . . . . 712 . . . . 327 554 2383 2075 3424 Initial 1429 | . 9 151 1 124 . . 117 154 152 50 341 238 187 316 149 27 504 254 165 . . . . 81 . . . . 6 . 306 1429 1328 Average 468 | 5 302 69 320 124 . 256 244 214 58 533 341 321 222 430 282 868 537 241 697 . . . . 369 . . . . 80 334 1847 1787 2085 Maximum Alert Level 5 | . 2 1 2 . . 2 2 1 1 3 1 2 2 2 2 4 3 1 4 . . . . 3 . . . . 1 2 5 5 5 Low Security (%) 28 | 100 20 91 7 100 . 43 38 44 81 5 . . 54 . 11 11 . . 8 . . . . 27 . . . . 89 18 . . . Level 1 32 | . 55 8 74 . . 35 55 55 18 31 100 90 37 36 63 2 4 100 4 . . . . 36 . . . . 10 33 . . . Level 2 20 | . 23 . 17 . . 20 6 . . 32 . 9 8 63 25 6 77 . 43 . . . . 24 . . . . . 47 . . . Level 3 9 | . . . . . . . . . . 30 . . . . . 55 17 . 39 . . . . 11 . . . . . . . . . Level 4 2 | . . . . . . . . . . . . . . . . 25 . . 4 . . . . . . . . . . . . 18 27 Level 5 3 | . . . . . . . . . . . . . . . . . . . . . . . . . . . . . . . . 81 27 High Security 1 | . . . . . . . . . . . . . . . . . . . . . . . . . . . . . . . . . 44 Max Security . | . . . . . . . . . . . . . . . . . . . . . . . . . . . . . . . 99 . . Squads Dispatched 115 | . 5 . 6 . . 1 3 3 . 18 . 1 2 . . 10 9 . 4 . 1 . . 6 . . . 1 4 5 12 6 18 Investigation 17 | . 2 . 3 . . . 1 1 . . . . . . . . 3 . 1 . . . . 2 . . . . 1 1 . 1 1 Extermination 16 | . . . . . . . . . . 4 . 1 . . . 1 3 . 1 . . . . 2 . . . . . 2 . 1 1 Reinforcement 32 | . 3 . 3 . . 1 2 . . 5 . . 2 . . 5 2 . 1 . . . . 2 . . . . 3 2 . 1 . Assault 38 | . . . . . . . . 1 . 2 . . . . . . 1 . 1 . 1 . . . . . . 1 . . 12 3 16 Garrison 12 | . . . . . . . . 1 . 7 . . . . . 4 . . . . . . . . . . . . . . . . . Intercept . | . . . . . . . . . . . . . . . . . . . . . . . . . . . . . . . . . . Searches Triggered . | . . . . . . . . . . . . . . . . . . . . . . . . . . . . . . . . . . Construction Impeded 4 | . . . . . . 1 1 . . 1 . . . . . 1 . . . . . . . . . . . . . . . . . Haulers Reinforced 8 | . . . . . . . . . . 2 . . . . . 3 . . 1 . . . . 2 . . . . . . . . . Active Scanning Responses . | . . . . . . . . . . . . . . . . . . . . . . . . . . . . . . . . . . Cargo Convoy Interrupts 1 | . . . . . . . . . . . . . . . . . 1 . . . . . . . . . . . . . . . . Stealth | -11 -10 -10 -9 -9 -9 -8 -8 -8 -8 -6 -6 -6 -6 -6 -6 -6 -5 -5 -5 -5 -5 -5 -4 -4 -4 -4 -4 -3 -3 -2 -2 -1 -1 --------- Run | Yrd Mat Min Mat Min Exi Min Mat Sto Rec Fac Was Fac Ext Cet Arc Hub Fac Was Fac Upp Upp War Pro Fac Upp Upp Zhi Pro Res Res Tes Acc Com Distress Signals 48 | . 2 . 4 . . . 10 3 1 4 . 2 2 2 . 1 . . 2 . . . . . . . . . 4 4 . 1 6 Communications Jammed . | . . . . . . . . . . . . . . . . . . . . . . . . . . . . . . . . . . Distress Signals . | . . . . . . . . . . . . . . . . . . . . . . . . . . . . . . . . . . Times Spotted 779 | . 30 4 41 . . 17 39 31 2 68 6 11 35 10 28 32 30 1 22 12 2 . 8 51 . . . 15 10 31 74 38 131 Peak Tracking Total 30 | . 5 2 6 . . 6 11 6 1 6 5 2 7 5 2 7 5 1 6 5 4 . 4 7 . . . 7 6 5 30 8 26 Tactical Retreats 56 | . 4 . . . . 1 3 1 . 4 . . 3 . . . 2 . . . 2 . . 3 . . . 2 1 3 4 7 16 Traps | -11 -10 -10 -9 -9 -9 -8 -8 -8 -8 -6 -6 -6 -6 -6 -6 -6 -5 -5 -5 -5 -5 -5 -4 -4 -4 -4 -4 -3 -3 -2 -2 -1 -1 ------- Run | Yrd Mat Min Mat Min Exi Min Mat Sto Rec Fac Was Fac Ext Cet Arc Hub Fac Was Fac Upp Upp War Pro Fac Upp Upp Zhi Pro Res Res Tes Acc Com Traps Triggered 38 | . 4 . 2 . . . . 2 . 7 . 1 3 . . 2 3 . 3 . . . . 5 . . . . 2 . 1 1 2 Indirectly . | . . . . . . . . . . . . . . . . . . . . . . . . . . . . . . . . . . Trap Hack Attempts . | . . . . . . . . . . . . . . . . . . . . . . . . . . . . . . . . . . Triggered . | . . . . . . . . . . . . . . . . . . . . . . . . . . . . . . . . . . Disarmed . | . . . . . . . . . . . . . . . . . . . . . . . . . . . . . . . . . . Reprogrammed . | . . . . . . . . . . . . . . . . . . . . . . . . . . . . . . . . . . Reused 3 | . . . . . . . . . . . . . . . . . . . . . . . . . . . . . . . . . 3 Traps Extracted . | . . . . . . . . . . . . . . . . . . . . . . . . . . . . . . . . . . Installed 3 | . . . . . . . . . . . . . . . . . . . . . . . . . . . . . . . . . 3 Triggered 7 | . . . . . . . . . . . . . . . . . 2 . . . . . . . . . . 1 . 1 . . 3 Most Traps Carried 3 | . . . . . . . . . . . . . . . . . . . . . . . . . . . . 3 3 3 3 3 3 Machines | -11 -10 -10 -9 -9 -9 -8 -8 -8 -8 -6 -6 -6 -6 -6 -6 -6 -5 -5 -5 -5 -5 -5 -4 -4 -4 -4 -4 -3 -3 -2 -2 -1 -1 ---------- Run | Yrd Mat Min Mat Min Exi Min Mat Sto Rec Fac Was Fac Ext Cet Arc Hub Fac Was Fac Upp Upp War Pro Fac Upp Upp Zhi Pro Res Res Tes Acc Com Machines Disabled 69 | . 3 . 3 . . 2 6 4 1 1 . 2 7 . 3 2 1 . 14 . . . . 6 . . . 1 . . 5 4 4 Max in Single Turn 4 | . 2 . 1 . . 2 2 1 1 1 . 2 1 . 1 . 1 . 4 . . . . 4 . . . 1 . . 1 1 2 Garrison Access 8 | . . . . . . . 1 1 . 1 . . . . . 1 . . 2 . . . . 2 . . . . . . . . . Phase Generator 1 | . . . . . . . . . . . . . . . . . . . . . . . . . . . . . . . . . 1 Machines Repaired . | . . . . . . . . . . . . . . . . . . . . . . . . . . . . . . . . . . Machines Dismantled 4 | . . . . . . . . 1 . . . . 3 . . . . . . . . . . . . . . . . . . . . Machines Sabotaged . | . . . . . . . . . . . . . . . . . . . . . . . . . . . . . . . . . . Overloaded Fab Kills 6 | . . . . . . . . . . . . . . . . . . . . . . . . 3 . . . . . . . 3 . Hacking | -11 -10 -10 -9 -9 -9 -8 -8 -8 -8 -6 -6 -6 -6 -6 -6 -6 -5 -5 -5 -5 -5 -5 -4 -4 -4 -4 -4 -3 -3 -2 -2 -1 -1 --------- Run | Yrd Mat Min Mat Min Exi Min Mat Sto Rec Fac Was Fac Ext Cet Arc Hub Fac Was Fac Upp Upp War Pro Fac Upp Upp Zhi Pro Res Res Tes Acc Com Machines Accessed 137 | . 6 . 9 . 2 . 7 12 8 6 . 7 12 1 . 3 7 . 17 . . . . 14 . 1 4 . 9 5 . 7 . Terminals 94 | . 5 . 7 . . . 6 12 6 3 . 6 12 1 . 2 3 . 10 . . . . 8 . . . . 4 4 . 5 . Fabricators 11 | . . . . . . . . . . 1 . 1 . . . . 2 . 2 . . . . 2 . . . . 1 1 . 1 . Repair Stations 1 | . . . . . . . . . . . . . . . . . . . . . . . . 1 . . . . . . . . . Recycling Units 4 | . 1 . 2 . . . . . 1 . . . . . . . . . . . . . . . . . . . . . . . . Scanalyzers 9 | . . . . . . . . . . . . . . . . . 2 . 3 . . . . 1 . . . . 3 . . . . Garrison Access 10 | . . . . . . . 1 . . 2 . . . . . 1 . . 2 . . . . 2 . . . . 1 . . 1 . Total Hacks 354 | . 17 . 29 . 2 . 23 33 23 11 . 18 31 2 . 8 19 . 43 . . . . 40 . 1 17 . 14 9 . 14 . Successful 171 | . 7 . 14 . 2 . 10 15 12 4 . 8 17 1 . 3 10 . 24 . . . . 16 . 1 17 . 4 2 . 4 . Failed 182 | . 9 . 15 . . . 13 18 11 7 . 10 14 1 . 5 9 . 19 . . . . 24 . . . . 10 7 . 10 . Catastrophic 33 | . 1 . 1 . . . 1 1 4 2 . 2 3 1 . . 1 . 4 . . . . 5 . . . . 4 2 . 1 . Database Lockouts 1 | . 1 . . . . . . . . . . . . . . . . . . . . . . . . . . . . . . . . Manual 170 | . 12 . 21 . 1 . 9 19 12 5 . 8 18 1 . 4 11 . 19 . . . . 15 . . . . 5 7 . 3 . Terminals 252 | . 16 . 27 . . . 19 33 20 5 . 15 31 2 . 6 6 . 27 . . . . 25 . . . . 5 5 . 10 . Fabricators 32 | . . . . . . . . . . 3 . 3 . . . . 8 . 6 . . . . 3 . . . . 2 4 . 3 . Repair Stations 2 | . . . . . . . . . . . . . . . . . . . . . . . . 2 . . . . . . . . . Recycling Units 4 | . 1 . 2 . . . . . 1 . . . . . . . . . . . . . . . . . . . . . . . . Scanalyzers 23 | . . . . . . . . . . . . . . . . . 5 . 8 . . . . 5 . . . . 5 . . . . Garrison Access 19 | . . . . . . . 4 . . 3 . . . . . 2 . . 2 . . . . 5 . . . . 2 . . 1 . Terminal Hacks 97 | . 4 . 10 . 2 . 6 11 9 . . 3 14 1 . . 1 . 9 . . . . 6 . 1 17 . . . . 3 . Record 6 | . . . . . 1 . . . . . . . . . . . . . . . . . . . . . 5 . . . . . . Part Schematic 7 | . . . 2 . . . . . 1 . . . . . . . . . . . . . . . . . 4 . . . . . . Robot Analysis 10 | . 3 . 2 . . . . . . . . . 1 . . . . . . . . . . . . . 4 . . . . . . Prototype ID Bank 17 | . 1 . 2 . . . 2 3 2 . . . 1 . . . . . 1 . . . . 1 . . 4 . . . . . . Open Door 13 | . . . . . . . . 4 . . . . 5 1 . . . . . . . . . . . 1 . . . . . 2 . Branch Access Points 6 | . . . 1 . . . 1 . . . . 1 . . . . . . 1 . . . . 1 . . . . . . . 1 . Terminal Index 4 | . . . . . . . . . . . . 1 1 . . . 1 . 1 . . . . . . . . . . . . . . Alert Level 6 | . . . . . . . . 1 . . . 1 2 . . . . . 1 . . . . 1 . . . . . . . . . Unreport Threat 15 | . . . 1 . . . 2 2 3 . . . 2 . . . . . 3 . . . . 2 . . . . . . . . . Maintenance Status 1 | . . . . . . . . . . . . . . . . . . . . . . . . 1 . . . . . . . . . Security Status 1 | . . . . . . . . . 1 . . . . . . . . . . . . . . . . . . . . . . . . Patrol Status 1 | . . . . . . . . . . . . . . . . . . . 1 . . . . . . . . . . . . . . Hauler Manifests 4 | . . . 1 . . . 1 1 . . . . . . . . . . 1 . . . . . . . . . . . . . . Zone Layout 3 | . . . 1 . . . . . . . . . 2 . . . . . . . . . . . . . . . . . . . . Derelict Proto ID Bank 1 | . . . . . 1 . . . . . . . . . . . . . . . . . . . . . . . . . . . . Release Object 2 | . . . . . . . . . 2 . . . . . . . . . . . . . . . . . . . . . . . . Fabricator Hacks 8 | . . . . . . . . . . 2 . 1 . . . . 1 . 3 . . . . . . . . . . 1 . . . Network Status 4 | . . . . . . . . . . . . 1 . . . . 1 . 1 . . . . . . . . . . 1 . . . Load Schematic 2 | . . . . . . . . . . 1 . . . . . . . . 1 . . . . . . . . . . . . . . Build 2 | . . . . . . . . . . 1 . . . . . . . . 1 . . . . . . . . . . . . . . Repair Station Hacks 1 | . . . . . . . . . . . . . . . . . . . . . . . . 1 . . . . . . . . . Scan Component 1 | . . . . . . . . . . . . . . . . . . . . . . . . 1 . . . . . . . . . Recycling Unit Hacks . | . . . . . . . . . . . . . . . . . . . . . . . . . . . . . . . . . . Scanalyzer 13 | . . . . . . . . . . . . . . . . . 2 . 6 . . . . 3 . . . . 2 . . . . Insert Component 10 | . . . . . . . . . . . . . . . . . 2 . 5 . . . . 1 . . . . 2 . . . . Analyze 3 | . . . . . . . . . . . . . . . . . . . 1 . . . . 2 . . . . . . . . . Garrison Access Hacks 7 | . . . . . . . 1 . . 1 . . . . . 1 . . 2 . . . . 2 . . . . . . . . . Seal Access 7 | . . . . . . . 1 . . 1 . . . . . 1 . . 2 . . . . 2 . . . . . . . . . Unauthorized Hacks 45 | . 3 . 4 . . . 3 4 3 1 . 4 3 . . 2 6 . 4 . . . . 4 . . . . 2 1 . 1 . Terminals 31 | . 2 . 2 . . . 3 4 2 1 . 3 3 . . 2 2 . 3 . . . . 3 . . . . 1 . . . . Assimilate 7 | . . . . . . . 1 2 . . . 1 . . . . 1 . . . . . . 1 . . . . 1 . . . . Botnet 24 | . 2 . 2 . . . 2 2 2 1 . 2 3 . . 2 1 . 3 . . . . 2 . . . . . . . . . Fabricators 10 | . . . . . . . . . . . . 1 . . . . 4 . 1 . . . . 1 . . . . 1 1 . 1 . Report 1 | . . . . . . . . . . . . . . . . . 1 . . . . . . . . . . . . . . . . Prioritize 1 | . . . . . . . . . . . . . . . . . 1 . . . . . . . . . . . . . . . . Liberate 4 | . . . . . . . . . . . . . . . . . 1 . 1 . . . . . . . . . 1 1 . . . Haulers 2 | . . . . . . . . . . . . 1 . . . . 1 . . . . . . . . . . . . . . . . Overload 2 | . . . . . . . . . . . . . . . . . . . . . . . . 1 . . . . . . . 1 . Repair Stations . | . . . . . . . . . . . . . . . . . . . . . . . . . . . . . . . . . . Recycling Units 4 | . 1 . 2 . . . . . 1 . . . . . . . . . . . . . . . . . . . . . . . . Tunnel 4 | . 1 . 2 . . . . . 1 . . . . . . . . . . . . . . . . . . . . . . . . Scanalyzers . | . . . . . . . . . . . . . . . . . . . . . . . . . . . . . . . . . . Garrison Access . | . . . . . . . . . . . . . . . . . . . . . . . . . . . . . . . . . . Data Cores Recovered 2 | . . . 1 . . . . 1 . . . . . . . . . . . . . . . . . . . . . . . . . Used 1 | . . . . . . . . 1 . . . . . . . . . . . . . . . . . . . . . . . . . Hacking Detections 110 | . 5 . 7 . . . 7 10 4 5 . 7 10 . . 3 6 . 15 . . . . 11 . . . . 9 5 . 6 . Full Trace Events 6 | . . . 1 . . . 1 1 . . . . . . . . 2 . 1 . . . . . . . . . . . . . . Feedback Events 1 | . . . . . . . . . . . . . . . . . . . 1 . . . . . . . . . . . . . . Corruption 1 | . . . . . . . . . . . . . . . . . . . 1 . . . . . . . . . . . . . . Feedback Blocked . | . . . . . . . . . . . . . . . . . . . . . . . . . . . . . . . . . . Robot Schematics Acquired . | . . . . . . . . . . . . . . . . . . . . . . . . . . . . . . . . . . Robots Built . | . . . . . . . . . . . . . . . . . . . . . . . . . . . . . . . . . . Authchips . | . . . . . . . . . . . . . . . . . . . . . . . . . . . . . . . . . . Time . | . . . . . . . . . . . . . . . . . . . . . . . . . . . . . . . . . . Total Robot Build Rating . | . . . . . . . . . . . . . . . . . . . . . . . . . . . . . . . . . . Part Schematics Acquired 8 | . . . 2 . . . . . 1 . . . . . . . . . . . . . . 1 . . 4 . . . . . . Parts Built 4 | . . . . . . . . . . 2 . . . . . . . . 2 . . . . . . . . . . . . . . Authchips 2 | . . . . . . . . . . 1 . . . . . . . . 1 . . . . . . . . . . . . . . Time 62 | . . . . . . . . . . 31 . . . . . . . . 31 . . . . . . . . . . . . . . Total Part Build Rating 20 | . . . . . . . . . . 10 . . . . . . . . 10 . . . . . . . . . . . . . . Parts Repaired . | . . . . . . . . . . . . . . . . . . . . . . . . . . . . . . . . . . Time . | . . . . . . . . . . . . . . . . . . . . . . . . . . . . . . . . . . Parts Recycled . | . . . . . . . . . . . . . . . . . . . . . . . . . . . . . . . . . . Recycled Matter . | . . . . . . . . . . . . . . . . . . . . . . . . . . . . . . . . . . Retrieved Matter . | . . . . . . . . . . . . . . . . . . . . . . . . . . . . . . . . . . Retrieved Components . | . . . . . . . . . . . . . . . . . . . . . . . . . . . . . . . . . . Parts Scanalyzed 3 | . . . . . . . . . . . . . . . . . . . 2 . . . . 1 . . . . . . . . . Part Schematics Acquired 1 | . . . . . . . . . . . . . . . . . . . . . . . . 1 . . . . . . . . . Parts Damaged 2 | . . . . . . . . . . . . . . . . . . . 1 . . . . 1 . . . . . . . . . Bothacking | -11 -10 -10 -9 -9 -9 -8 -8 -8 -8 -6 -6 -6 -6 -6 -6 -6 -5 -5 -5 -5 -5 -5 -4 -4 -4 -4 -4 -3 -3 -2 -2 -1 -1 ------------ Run | Yrd Mat Min Mat Min Exi Min Mat Sto Rec Fac Was Fac Ext Cet Arc Hub Fac Was Fac Upp Upp War Pro Fac Upp Upp Zhi Pro Res Res Tes Acc Com Used RIF Installer . | . . . . . . . . . . . . . . . . . . . . . . . . . . . . . . . . . . Robots Hacked . | . . . . . . . . . . . . . . . . . . . . . . . . . . . . . . . . . . Non-combat . | . . . . . . . . . . . . . . . . . . . . . . . . . . . . . . . . . . Combat . | . . . . . . . . . . . . . . . . . . . . . . . . . . . . . . . . . . Robot Hacks Applied . | . . . . . . . . . . . . . . . . . . . . . . . . . . . . . . . . . . Relay Couplers Released 4 | . . . . . . . . . . . . . . . . . 4 . . . . . . . . . . . . . . . . Programmers 4 | . . . . . . . . . . . . . . . . . 4 . . . . . . . . . . . . . . . . Fabnet Peak Effective % . | . . . . . . . . . . . . . . . . . . . . . . . . . . . . . . . . . . Robots Rewired 11 | . . . . . . . . . . . . . 10 . . . . . . . . . . . . . . 1 . . . . . Allies Hacked 2 | . . . . . . . . . . . . . . . . . . . 2 . . . . . . . . . . . . . . Hacks Repelled . | . . . . . . . . . . . . . . . . . . . . . . . . . . . . . . . . . . Allies | -11 -10 -10 -9 -9 -9 -8 -8 -8 -8 -6 -6 -6 -6 -6 -6 -6 -5 -5 -5 -5 -5 -5 -4 -4 -4 -4 -4 -3 -3 -2 -2 -1 -1 -------- Run | Yrd Mat Min Mat Min Exi Min Mat Sto Rec Fac Was Fac Ext Cet Arc Hub Fac Was Fac Upp Upp War Pro Fac Upp Upp Zhi Pro Res Res Tes Acc Com Total Allies 72 | . . 3 . . . . 1 11 . . . 1 24 5 . . 1 20 . . . . . 1 . . . 1 1 3 . . . Largest Group 20 | . . 3 3 . . . 1 10 8 8 . 1 14 15 13 11 1 20 19 7 3 1 1 1 . . . 1 1 2 . . . Highest-Rated Group 947 | . . 40 40 . . . 10 173 141 141 . 26 574 947 815 602 26 663 638 282 119 27 27 10 . . . 48 26 116 . . . Highest-Rated Ally 159 | . . 16 16 . . . 10 29 29 29 . 26 159 159 159 96 26 50 50 50 46 27 27 10 . . . 48 26 58 . . . Total Orders 1 | . . . . . . . . . . 1 . . . . . . . . . . . . . . . . . . . . . . . ROAM 1 | . . . . . . . . . . 1 . . . . . . . . . . . . . . . . . . . . . . . Ally Attacks 776 | . . 4 42 . . . . 18 30 74 . . 162 72 28 111 . 7 188 21 6 . . . . . . 8 . 5 . . . Total Damage 17701 | . . 44 556 . . . . 243 416 926 . . 2808 1359 680 3569 . 141 5425 850 164 . . . . . . 331 . 189 . . . Kills 131 | . . . 10 . . . . 3 5 10 . . 24 8 3 25 . 1 34 6 1 . . . . . . 1 . . . . . Allies Corrupted 2 | . . . . . . . . . . . . . . . . . . . 1 . . . . . . . . . . 1 . . . Allies Melted 1 | . . . . . . . . . . . . . . . . . . . . . . . . . . . . 1 . . . . . Intel | -11 -10 -10 -9 -9 -9 -8 -8 -8 -8 -6 -6 -6 -6 -6 -6 -6 -5 -5 -5 -5 -5 -5 -4 -4 -4 -4 -4 -3 -3 -2 -2 -1 -1 ------- Run | Yrd Mat Min Mat Min Exi Min Mat Sto Rec Fac Was Fac Ext Cet Arc Hub Fac Was Fac Upp Upp War Pro Fac Upp Upp Zhi Pro Res Res Tes Acc Com Robot Analysis Total 9 | . 3 . 1 . . . . . . . . . 1 . . . . . . . . . . . . . 4 . . . . . . Derelict Logs Recovered 8 | . . 2 . . . . . . . . . . . . . . . . . 1 2 . 2 . . 1 . . . . . . . Drone Launches . | . . . . . . . . . . . . . . . . . . . . . . . . . . . . . . . . . . Drone Recoveries . | . . . . . . . . . . . . . . . . . . . . . . . . . . . . . . . . . . Decoded 0b10 Intel 10 | . . . . . . . . . . . . . . . . . . . . . . . . 10 . . . . . . . . . Traps 10 | . . . . . . . . . . . . . . . . . . . . . . . . 10 . . . . . . . . . Exploration | -11 -10 -10 -9 -9 -9 -8 -8 -8 -8 -6 -6 -6 -6 -6 -6 -6 -5 -5 -5 -5 -5 -5 -4 -4 -4 -4 -4 -3 -3 -2 -2 -1 -1 ------------- Run | Yrd Mat Min Mat Min Exi Min Mat Sto Rec Fac Was Fac Ext Cet Arc Hub Fac Was Fac Upp Upp War Pro Fac Upp Upp Zhi Pro Res Res Tes Acc Com Turns Passed 30380 | 143 930 969 1966 339 391 593 1489 1076 1248 2165 175 670 1277 517 884 1283 2052 305 1266 534 476 76 612 1997 729 875 159 810 1506 983 234 728 923 Spaces Moved 21779 | 58 393 574 1007 226 265 337 787 566 672 1204 199 564 846 213 819 699 1289 278 1405 670 641 99 693 1519 560 666 144 564 1256 688 220 897 761 Core 4 | 4 . . . . . . . . . . . . . . . . . . . . . . . . . . . . . . . . . Treads 4267 | 54 393 574 1007 226 265 337 450 . 253 . . 224 . . . 347 . . . . . . . . . . . 39 18 80 . . . Legs 6413 | . . . . . . . . . . . . . 194 213 819 352 677 . 564 . . . . 310 560 666 144 525 . 76 35 517 761 Wheels 2986 | . . . . . . . 337 566 419 627 . . . . . . . . . . . . . 1037 . . . . . . . . . Hover 2918 | . . . . . . . . . . 154 199 340 652 . . . 148 278 65 . . . . 67 . . . . 755 . 69 191 . Flight 5191 | . . . . . . . . . . 423 . . . . . . 464 . 776 670 641 99 693 105 . . . . 483 532 116 189 . Fastest Speed 44 | 50 160 160 145 145 145 145 110 125 110 64 64 64 91 91 91 91 55 55 55 69 69 69 69 69 91 91 91 91 58 58 44 44 85 Average Speed 101 | 152 160 160 155 145 145 145 135 139 146 134 64 87 91 91 91 140 124 55 71 69 69 69 69 82 91 91 91 91 66 91 80 51 91 Slowest Speed 240 | 160 160 160 240 145 145 145 155 170 178 208 64 144 91 91 91 161 161 55 74 69 69 69 69 126 91 91 91 91 97 234 176 187 228 Overloaded Moves . | . . . . . . . . . . . . . . . . . . . . . . . . . . . . . . . . . . Propulsion Burnouts . | . . . . . . . . . . . . . . . . . . . . . . . . . . . . . . . . . . Robots Hopped 5 | . . . . . . . . . . 1 . . . . . . . . 2 . . . . 1 . . . . 1 . . . . Cave-ins Triggered 1 | . . . . . . . . . . . . . . . . . . . . . . . . . . . . . . . . . 1 Teleports 1 | . . . . . . . . . . . . . . . . . . . . . . . . . . . . . . . 1 . . Exploration Rate (%) 59 | 4 70 97 85 49 63 69 64 85 99 34 92 16 87 79 88 45 26 89 43 92 84 14 81 37 74 74 60 68 31 15 43 25 28 Regions Visited 33 Branch Regions 20 Pre-discovered Areas 9 | . 1 . 2 . 1 . . . 1 . . . . . . . . . . . . . 1 . . . 3 . . . . . . Known Exits Taken 13 | . . . 1 . . . 1 . . . . 1 . . . . . . 1 1 1 1 1 1 1 1 1 . . . . 1 . Unknown Exits Taken 16 | 1 1 1 . 1 1 1 . 1 1 . . . 1 1 1 1 . . . . . . . . . . . 1 1 1 1 . . Scrap Searched 21 | . . 1 . 1 . 2 . . . . . . . . . . . . . 2 2 . 4 . 2 3 . 4 . . . . . Spaces Dug 213 | . . . . . . 27 14 . . 1 . 2 . . . 1 13 . 34 . . . 54 10 . 8 . . 9 22 3 10 5 Terrain Destroyed 1231 | . 16 . 7 . . 85 32 . . 90 . 35 . . 3 50 90 1 82 54 1 . 149 146 . 8 . 38 10 44 56 20 214 Melee 5 | . . . . . . . . . . 1 . 2 . . . . . . 1 . . . . . . . . . . . . . 1 Projectile 249 | . . . . . . 1 . . . . . . . . 3 13 31 1 19 1 1 . 4 56 . 8 . 38 10 12 6 20 25 AOE 975 | . 16 . 7 . . 84 32 . . 89 . 31 . . . 37 59 . 62 53 . . 145 90 . . . . . 32 50 . 188 Terrain Rammed . | . . . . . . . . . . . . . . . . . . . . . . . . . . . . . . . . . . Walls Destroyed . | . . . . . . . . . . . . . . . . . . . . . . . . . . . . . . . . . . Machines Disabled . | . . . . . . . . . . . . . . . . . . . . . . . . . . . . . . . . . . Actions | -11 -10 -10 -9 -9 -9 -8 -8 -8 -8 -6 -6 -6 -6 -6 -6 -6 -5 -5 -5 -5 -5 -5 -4 -4 -4 -4 -4 -3 -3 -2 -2 -1 -1 --------- Run | Yrd Mat Min Mat Min Exi Min Mat Sto Rec Fac Was Fac Ext Cet Arc Hub Fac Was Fac Upp Upp War Pro Fac Upp Upp Zhi Pro Res Res Tes Acc Com Total 28290 | 82 583 603 1247 229 273 399 1044 749 937 1599 226 715 1235 510 918 965 1657 420 1641 736 672 106 807 2109 778 932 171 802 1901 984 253 1096 911 Wait 4355 | 3 104 8 97 . . 27 130 89 228 187 4 114 223 277 49 184 251 127 158 34 29 8 80 383 211 252 14 142 556 221 5 112 48 Move 21738 | 57 392 573 1006 225 264 336 786 565 671 1202 198 563 845 212 818 698 1289 277 1400 669 640 98 692 1516 559 665 143 563 1253 687 219 896 761 Hop 5 | . . . . . . . . . . 1 . . . . . . . . 2 . . . . 1 . . . . 1 . . . . Pick Up 165 | . 7 5 12 . 3 2 10 6 8 7 3 6 6 1 6 11 12 1 9 2 . . 4 12 1 1 4 . 10 4 3 4 5 Fast Attach 122 | 7 2 . 12 . . . 11 7 1 1 . . . . 1 2 5 2 12 7 . . . 11 2 3 5 5 17 3 2 2 2 Attach 84 | . 3 . 3 . . . 2 1 1 9 . 2 2 . 7 6 5 . 6 3 . . 4 6 . 1 . 2 6 2 2 3 8 Detach 52 | . 1 . 1 . . . . . 4 6 . 1 1 . 1 5 5 . 6 2 . . 3 2 . . . 1 6 1 . 2 4 Swap 93 | . 8 3 15 . 2 5 12 11 . . . . . . . 3 2 . 2 3 2 . 4 6 2 . . 7 3 1 . 2 . Drop 237 | . 4 3 20 . 4 2 15 12 18 7 1 4 5 2 4 14 12 2 19 10 . . 1 21 3 6 5 5 24 7 1 3 3 Fire 1254 | 15 62 11 81 4 . 27 78 42 6 167 20 23 73 18 14 41 76 9 18 6 1 . 19 151 . 4 . 55 25 58 21 71 58 Melee 49 | . . . . . . . . . . 12 . 2 . . 18 . . . 9 . . . . . . . . . . . . . 8 Ram . | . . . . . . . . . . . . . . . . . . . . . . . . . . . . . . . . . . Kick 5 | . . . . . . . . . . . . . . . . . . . . . . . . . . . . . . . . 1 4 Crush . | . . . . . . . . . . . . . . . . . . . . . . . . . . . . . . . . . . Escape Stasis 21 | . . . . . . . . 8 . . . . 6 . . . . . . . . . . . . . . . . . . . 7 Rewire 75 | . . . . . . . . . . . . . 50 . . 1 . 2 . . . . . . . . . 22 . . . . . Trap 3 | . . . . . . . . . . . . . . . . . . . . . . . . . . . . . . . . . 3 Miscellaneous 32 | . . . . . . . . 8 . . . . 24 . . . . . . . . . . . . . . . . . . . . Route ------- -11/Scrapyard -10/Materials (discovered 3 exits: *Mat / [*Min x2]) -10/Mines (discovered 2 exits: *Mat x2) -9/Materials (discovered 3 exits: *Mat x2 / *Min) -9/Mines -9/Exiles -8/Mines (discovered 2 exits: *Mat x2) -8/Materials (discovered 4 exits: [*Fac x2] / *Sto x2) -8/Storage (discovered 2 exits: [*Fac] / *Rec) -8/Recycling -6/Factory -6/Waste -6/Factory (discovered 5 exits: *Fac / Low x2 / *Ext x2) -6/Extension (discovered 2 exits: *Fac / *Cet) -6/Cetus (discovered 2 exits: *Fac / *Arc) -6/Archives (discovered 3 exits: *Fac / *Hub x2) -6/Hub_04(d) (discovered 3 exits: *Fac x3) -5/Factory -5/Waste -5/Factory (discovered 3 exits: *Fac / *Upp x2) -5/Upper Caves -5/Upper Caves (discovered 2 exits: *Fac / *War) -5/Warlord -4/Proximity Caves -4/Factory (discovered 5 exits: *Res x2 / *Upp x2 / Arm) -4/Upper Caves -4/Upper Caves -4/Zhirov -3/Proximity Caves -3/Research (discovered 2 exits: *Res / Qua) -2/Research -2/Testing -1/Access -1/Command History --------- Turn | Location | Event 10 | -11/Scrapyard | Discovered new exit (range 15) 144 | -11/Scrapyard | Entered Materials 214 | -10/Materials | Discovered new exit (range 7) 316 | -10/Materials | Build established: Mutant 811 | -10/Materials | Discovered new exit (range 16) 984 | -10/Materials | Discovered new exit (range 15) 1003 | -10/Materials | Central database locked down 1074 | -10/Materials | Entered Mines 1086 | -10/Mines | Learned 2 Materials zone layouts 1089 | -10/Mines | Met a Derelict bent on vengeance 1127 | -10/Mines | Learned Materials emergency access door positions 1431 | -10/Mines | Discovered new exit (range 7) 1527 | -10/Mines | Discovered new exit (range 10) 1665 | -10/Mines | Assisted by bots powering up and referring to "LRC-V3" 1762 | -10/Mines | Joined a pair of Derelicts in attacking an 0b10 outpost 1766 | -10/Mines | Core integrity fell below 50% 1866 | -10/Mines | Found a damaged Exp. Sensor Array with a note attached 1870 | -10/Mines | Found Prototype Device 1871 | -10/Mines | Identified Exp. Sensor Array 2043 | -10/Mines | Entered Materials 2043 | -9/Materials | Accompanied by 3 allies 2043 | -9/Materials | Evolved 2 slots: Propulsion x1, Utility x1 2353 | -9/Materials | Discovered new exit (range 14) 2470 | -9/Materials | Build established: Scavenger-Mutant 3276 | -9/Materials | Discovered new exit (range 12) 3727 | -9/Materials | Discovered new exit (range 3) 3736 | -9/Materials | Identified exit to Mines 3826 | -9/Materials | Build established: Mutant 4009 | -9/Materials | Entered Mines 4241 | -9/Mines | Assembled infested the area 4246 | -9/Mines | Assisted by a Guerilla fighting off Assembled 4313 | -9/Mines | Deemed a non-threat by the Exiles lab entrance 4313 | -9/Mines | Discovered new exit (range 5) 4348 | -9/Mines | Entered Exiles 4391 | -9/Exiles | Met 8R-AWN 4411 | -9/Exiles | Met EX-HEX 4469 | -9/Exiles | Met EX-DEC 4475 | -9/Exiles | Learned location of Zion (-6) 4515 | -9/Exiles | Met EX-BIN 4536 | -9/Exiles | Aligned with FarCom system 4537 | -9/Exiles | Given EX-Vault access code 4572 | -9/Exiles | Opened EX-Vault 4580 | -9/Exiles | Found AWS/Thermal 4610 | -9/Exiles | Warned to stay clear of 0b10 Research branches 4726 | -9/Exiles | Discovered new exit (range 10) 4739 | -9/Exiles | Left Exiles lab with AWS/Thermal 4739 | -9/Exiles | Entered Mines 4937 | -8/Mines | Discovered new exit (range 11) 5068 | -8/Mines | Destroyed 10 combat bots 5294 | -8/Mines | Discovered new exit (range 8) 5332 | -8/Mines | Entered Materials 5332 | -8/Materials | Evolved 2 slots: Utility x1, Weapon x1 5724 | -8/Materials | Discovered new exit (range 8) 5922 | -8/Materials | Build established: Skirmisher 6118 | -8/Materials | Destroyed 8 combat bots 6400 | -8/Materials | Discovered new exit (range 13) 6587 | -8/Materials | Identified exit to Storage 6729 | -8/Materials | Build established: Scavenger-Skirmisher 6821 | -8/Materials | Entered Storage 6937 | -8/Storage | Met 01-MTF 7007 | -8/Storage | Garrison activated, responded to threat 7403 | -8/Storage | Discovered new exit (range 15) 7545 | -8/Storage | Assisted by bots powering up and referring to "LRC-V3" 7880 | -8/Storage | Build established: Commander-Skirmisher 7884 | -8/Storage | Used back door to open Recycling access 7884 | -8/Storage | Discovered new exit (range 3) 7897 | -8/Storage | Entered Recycling 7897 | -8/Recycling | Accompanied by 8 allies 8064 | -8/Recycling | Discovered new exit (range 7) 8299 | -8/Recycling | Scanned before Scraplab entrance 8317 | -8/Recycling | Entered Scraplab 8334 | -8/Recycling | Angered Scraplab inhabitants 8336 | -8/Recycling | Found Prototype Device 8336 | -8/Recycling | Identified Scrap Engine 8803 | -8/Recycling | Build established: Commander-Construct 9145 | -8/Recycling | Entered Factory 9145 | -6/Factory | Accompanied by 8 allies 9145 | -6/Factory | Evolved 4 slots: Power x1, Propulsion x2, Utility x1 9237 | -6/Factory | Garrison activated, responded to threat 9435 | -6/Factory | Lost 4 allies 9681 | -6/Factory | Build established: Construct 10091 | -6/Factory | Garrison activated, responded to threat 10228 | -6/Factory | Fabricated Hvy. Flak Cannon? 10471 | -6/Factory | Garrison activated, responded to threat 10545 | -6/Factory | First assault squad dispatched 11132 | -6/Factory | System corruption reached 10% 11158 | -6/Factory | Discovered new exit (range 11) 11297 | -6/Factory | Spotted B-75 Beast 11310 | -6/Factory | Sucked down chute 11310 | -6/Factory | Entered Waste 11323 | -6/Waste | Spotted C-40 Crusher 11325 | -6/Waste | EMP discharged 11329 | -6/Waste | Spotted C-40 Crusher 11337 | -6/Waste | Destroyed C-40 Crusher 11341 | -6/Waste | Spotted C-40 Crusher 11344 | -6/Waste | Destroyed C-40 Crusher 11344 | -6/Waste | Spotted C-40 Crusher 11345 | -6/Waste | Spotted C-40 Crusher 11347 | -6/Waste | Destroyed C-40 Crusher 11354 | -6/Waste | Destroyed C-40 Crusher 11359 | -6/Waste | Destroyed C-40 Crusher 11360 | -6/Waste | Spotted C-40 Crusher 11373 | -6/Waste | Destroyed C-40 Crusher 11394 | -6/Waste | Discovered new exit (range 16) 11403 | -6/Waste | Found Corrupted Prototype Hackware 11425 | -6/Waste | EMP discharged 11443 | -6/Waste | Found Prototype Processor 11485 | -6/Waste | Entered Factory 11661 | -6/Factory | Discovered new exit (range 15) 11749 | -6/Factory | Discovered new exit (range 12) 11785 | -6/Factory | Identified exit to Lower Caves 11785 | -6/Factory | Identified exit to Extension 12155 | -6/Factory | Entered Extension 12196 | -6/Extension | Rescued a captive Derelict 12197 | -6/Extension | Rescued a captive Derelict 12258 | -6/Extension | Rescued a captive Derelict 12259 | -6/Extension | Rescued a captive Derelict 12370 | -6/Extension | Rescued a captive Derelict 12371 | -6/Extension | Rescued a captive Derelict 12484 | -6/Extension | Rescued a captive Derelict 12485 | -6/Extension | Rescued a captive Derelict 12755 | -6/Extension | Build established: Commander-Construct 12827 | -6/Extension | Spotted B-75 Beast 12842 | -6/Extension | Allies destroyed B-75 Beast 12843 | -6/Extension | Spotted B-75 Beast 12860 | -6/Extension | Allies destroyed B-75 Beast 12961 | -6/Extension | Rescued a captive Derelict 13150 | -6/Extension | Rescued a captive Derelict 13151 | -6/Extension | Rescued a captive Derelict 13267 | -6/Extension | Rescued A7 13306 | -6/Extension | Rescued a captive Derelict 13306 | -6/Extension | Rescued a captive Derelict 13375 | -6/Extension | Discovered new exit (range 10) 13376 | -6/Extension | Discovered new exit (range 6) 13398 | -6/Extension | Disrupted transfer network 13410 | -6/Extension | Core integrity fell below 50% 13432 | -6/Extension | Entered Cetus 13432 | -6/Cetus | Accompanied by 13 allies (A7) 13437 | -6/Cetus | Acquired a Cetus Manufacturing Module code from A7 13483 | -6/Cetus | Spotted Cetus Guard 13483 | -6/Cetus | Spotted Cetus Guard 13485 | -6/Cetus | Spotted Cetus Guard 13485 | -6/Cetus | Spotted Cetus Guard 13488 | -6/Cetus | Allies destroyed Cetus Guard 13496 | -6/Cetus | Allies destroyed Cetus Guard 13500 | -6/Cetus | Allies destroyed Cetus Guard 13503 | -6/Cetus | Allies destroyed Cetus Guard 13529 | -6/Cetus | Lost 3 allies 13550 | -6/Cetus | Started Cetus Manufacturing Module 13557 | -6/Cetus | Escorted A7 to Cetus Mainframe 13575 | -6/Cetus | Manufactured an Enhanced Grunt 13600 | -6/Cetus | Manufactured an Enhanced Grunt 13625 | -6/Cetus | Manufactured an Enhanced Grunt 13650 | -6/Cetus | Manufactured an Enhanced Grunt 13675 | -6/Cetus | Manufactured an Enhanced Grunt 13693 | -6/Cetus | Discovered new exit (range 15) 13710 | -6/Cetus | Spotted Cetus Guard 13711 | -6/Cetus | Spotted Cetus Guard 13714 | -6/Cetus | Spotted Cetus Guard 13714 | -6/Cetus | Spotted Cetus Guard 13719 | -6/Cetus | Allies destroyed Cetus Guard 13731 | -6/Cetus | Destroyed Cetus Guard 13738 | -6/Cetus | Allies destroyed Cetus Guard 13742 | -6/Cetus | Allies destroyed Cetus Guard 13750 | -6/Cetus | Discovered new exit (range 16) 13755 | -6/Cetus | Met Revision 17 13949 | -6/Cetus | Entered Archives 13949 | -6/Archives | Accompanied by 13 allies (A7) 13954 | -6/Archives | Received a hacking code to weaken MAIN.C 14002 | -6/Archives | Discovered new exit (range 16) 14048 | -6/Archives | Discovered new exit (range 16) 14095 | -6/Archives | Discovered new exit (range 13) 14625 | -6/Archives | Unable to access archive contents 14638 | -6/Archives | Unable to access archive contents 14833 | -6/Archives | Entered Hub_04(d) 14833 | -6/Hub_04(d) | Accompanied by 11 allies 14890 | -6/Hub_04(d) | Discovered new exit (range 14) 14925 | -6/Hub_04(d) | Found Prototype Launcher 15029 | -6/Hub_04(d) | Lost 3 allies 15086 | -6/Hub_04(d) | Identified Scatter Rocket Array 15087 | -6/Hub_04(d) | Discovered new exit (range 9) 15089 | -6/Hub_04(d) | Garrison activated, responded to threat 15287 | -6/Hub_04(d) | Build established: Hacker-Construct 15372 | -6/Hub_04(d) | Discovered new exit (range 16) 15436 | -6/Hub_04(d) | Found Prototype Device 15526 | -6/Hub_04(d) | Garrison activated, responded to threat 15569 | -6/Hub_04(d) | Spotted B-75 Beast 15571 | -6/Hub_04(d) | Identified Exp. Thermal Shield 15641 | -6/Hub_04(d) | Destroyed B-75 Beast 15747 | -6/Hub_04(d) | Core integrity fell below 20% 15873 | -6/Hub_04(d) | Build established: Construct 16115 | -6/Hub_04(d) | Identified Exp. Hacking Suite 16116 | -6/Hub_04(d) | Entered Factory 16116 | -5/Factory | Evolved 2 slots: Propulsion x1, Weapon x1 16416 | -5/Factory | First assault squad dispatched 16945 | -5/Factory | Identified Exp. Signal Interpreter 17936 | -5/Factory | Cargo convoy interrupted 17962 | -5/Factory | Discovered new exit (range 15) 17985 | -5/Factory | Found Corrupted Prototype Processor 17995 | -5/Factory | Found Corrupted Prototype Device 17999 | -5/Factory | Found Corrupted Prototype Processor 18041 | -5/Factory | Lost 4 allies 18168 | -5/Factory | Sucked down chute 18168 | -5/Factory | Entered Waste 18169 | -5/Waste | Joined by Warlord forces that had cleared the area 18198 | -5/Waste | Found Prototype Launcher 18258 | -5/Waste | A Compactor rumbled back to life 18258 | -5/Waste | Spotted C-40 Crusher 18258 | -5/Waste | Allies destroyed C-40 Crusher 18344 | -5/Waste | Discovered new exit (range 12) 18473 | -5/Waste | Entered Factory 18473 | -5/Factory | Accompanied by 19 allies 18596 | -5/Factory | Identified exit to Upper Caves 18702 | -5/Factory | Identified Adv. Micro-nuke Launcher 18702 | -5/Factory | Identified Thermal Barrier 18702 | -5/Factory | Identified Exp. Core Analyzer (x2) 19301 | -5/Factory | P-70 Sage assimilated allied A6-G5U(m) 19403 | -5/Factory | Discovered new exit (range 15) 19410 | -5/Factory | System corruption reached 10% 19477 | -5/Factory | Fabricated Hvy. Flak Cannon (x2) 19673 | -5/Factory | First assault squad dispatched 19717 | -5/Factory | Lost 6 allies 19739 | -5/Factory | Entered Upper Caves 19739 | -5/Upper Caves | Accompanied by 7 allies 19892 | -5/Upper Caves | Encountered a Warlord checkpoint 19956 | -5/Upper Caves | Learned 12 Factory zone layouts 20045 | -5/Upper Caves | Lost 4 allies 20194 | -5/Upper Caves | Discovered new exit (range 9) 20200 | -5/Upper Caves | Identified exit to Upper Caves 20273 | -5/Upper Caves | Entered another Upper Caves area 20273 | -5/Upper Caves | Accompanied by 3 allies 20316 | -5/Upper Caves | Discovered new exit (range 10) 20321 | -5/Upper Caves | Identified exit to Factory 20538 | -5/Upper Caves | Found DCF Scrap (15 items) 20568 | -5/Upper Caves | Learned Factory emergency access door positions 20601 | -5/Upper Caves | Identified exit to Warlord 20618 | -5/Upper Caves | Attracted the attention of an 0b10 outpost 20749 | -5/Upper Caves | Entered Warlord 20749 | -5/Warlord | Accompanied by 1 ally 20773 | -5/Warlord | System corruption cleaned by Quarantine Array 20776 | -5/Warlord | Attacked by Warlord forces 20797 | -5/Warlord | Discovered new exit (range 9) 20803 | -5/Warlord | Identified exit to Proximity Caves 20825 | -5/Warlord | Entered Proximity Caves 20825 | -4/Proximity Caves | Accompanied by 1 ally 20952 | -4/Proximity Caves | Learned location of Testing (-2) 20991 | -4/Proximity Caves | Learned Research stockpile data 21136 | -4/Proximity Caves | Attracted the attention of an 0b10 checkpoint 21297 | -4/Proximity Caves | Spotted B-86 Titan 21402 | -4/Proximity Caves | Discovered exit to Factory (range 7) 21437 | -4/Proximity Caves | Entered Factory 21437 | -4/Factory | Evolved 2 slots: Propulsion x1, Utility x1 21438 | -4/Factory | Identified exit to Armory 21438 | -4/Factory | Identified exit to Upper Caves 21648 | -4/Factory | Found Quantum Capacitor 22593 | -4/Factory | Discovered new exit (range 6) 22816 | -4/Factory | Discovered new exit (range 7) 22901 | -4/Factory | System corruption reached 10% 22961 | -4/Factory | Found Prototype Processor 22961 | -4/Factory | Identified Exp. Targeting Computer 22965 | -4/Factory | Found Exp. Targeting Computer 23434 | -4/Factory | Entered Upper Caves 23922 | -4/Upper Caves | Discovered new exit (range 9) 23954 | -4/Upper Caves | Identified exit to Upper Caves 24163 | -4/Upper Caves | Entered another Upper Caves area 24245 | -4/Upper Caves | Encountered a Warlord checkpoint 24834 | -4/Upper Caves | Spotted B-86 Titan 24874 | -4/Upper Caves | Discovered new exit (range 15) 24886 | -4/Upper Caves | Identified exit to Zhirov 25038 | -4/Upper Caves | Entered Zhirov 25038 | -4/Zhirov | Discovered new exit (range 3) 25039 | -4/Zhirov | Identified exit to Proximity Caves 25055 | -4/Zhirov | Met Zhirov 25073 | -4/Zhirov | Learned location of Quarantine (-3) 25073 | -4/Zhirov | Learned location of Command (-1) 25082 | -4/Zhirov | Zhirov requested help retrieving the SGEMP Prototype 25096 | -4/Zhirov | Found Alien Artifact 25096 | -4/Zhirov | Identified Integrated Dissipator 25096 | -4/Zhirov | Installed Integrated Dissipator, increased core heat dissipation (+20) 25121 | -4/Zhirov | Found Alien Artifact 25197 | -4/Zhirov | Entered Proximity Caves 25219 | -3/Proximity Caves | Attracted the attention of an 0b10 outpost 25542 | -3/Proximity Caves | Spotted B-86 Titan 25576 | -3/Proximity Caves | Destroyed B-86 Titan 25922 | -3/Proximity Caves | Discovered new exit (range 13) 26007 | -3/Proximity Caves | Entered Research 26007 | -3/Research | Evolved 2 slots: Propulsion x1, Utility x1 26008 | -3/Research | Identified exit to Quarantine 26207 | -3/Research | Revision forces began assault on 0b10 26343 | -3/Research | Met up with Revision 17++ 26403 | -3/Research | Found Unknown Launcher 26600 | -3/Research | Spotted B-86 Titan 26707 | -3/Research | Research terminal network offline 26727 | -3/Research | Found Prototype Processor 26727 | -3/Research | Identified Spectral Analyzer 26894 | -3/Research | Discovered new exit (range 15) 27117 | -3/Research | Lost 5 allies 27169 | -3/Research | Spotted Striker 27194 | -3/Research | Identified Transdimensional Reconstructor 27208 | -3/Research | Lost 7 allies 27513 | -3/Research | Entered another Research area 27513 | -2/Research | Evolved 2 slots: Power x1, Weapon x1 27902 | -2/Research | Discovered new exit (range 21) 28496 | -2/Research | Entered Testing 28497 | -2/Testing | Maximum security lockdown engaged 28651 | -2/Testing | Destroyed 9 combat bots 28658 | -2/Testing | Found Prototype Hackware 28687 | -2/Testing | Discovered new exit (range 18) 28697 | -2/Testing | Found Prototype Device 28722 | -2/Testing | Warped through subspace 28729 | -2/Testing | Spotted Striker 28730 | -2/Testing | Entered Access 28730 | -1/Access | Evolved 2 slots: Utility x2 28730 | -1/Access | Identified 2N-1CE's Frost Array 28731 | -1/Access | Identified System Mapper 28887 | -1/Access | Identified exit to Command 28921 | -1/Access | Spotted B-99 Colossus 29001 | -1/Access | Build established: Hacker-Construct 29017 | -1/Access | First assault squad dispatched 29152 | -1/Access | Found Prototype Launcher 29152 | -1/Access | Identified Ragnarok Missile Launcher 29156 | -1/Access | Found Ragnarok Missile Launcher 29206 | -1/Access | Spotted B-99 Colossus 29387 | -1/Access | Spotted B-99 Colossus 29397 | -1/Access | Destroyed B-99 Colossus 29410 | -1/Access | Spotted B-99 Colossus 29458 | -1/Access | Entered Command 29732 | -1/Command | Destroyed 7 combat bots 29746 | -1/Command | System corruption reached 10% 29750 | -1/Command | First assault squad dispatched 29919 | -1/Command | Build established: Construct 29952 | -1/Command | Lost 4 parts (1p1n1u1w) 29955 | -1/Command | System corruption reached 30% 29966 | -1/Command | High security lockdown imminent 30046 | -1/Command | High security lockdown engaged 30046 | -1/Command | Destroyed 11 combat bots 30112 | -1/Command | Phase Generator disabled 30188 | -1/Command | Destroyed 12 combat bots 30265 | -1/Command | Spotted Investigator 30266 | -1/Command | Scanned by Researcher 30267 | -1/Command | Destroyed Investigator 30293 | -1/Command | Destroyed 15 combat bots 30331 | -1/Command | Core integrity fell below 50% 30333 | -1/Command | Lost 6 parts (1p1n1u3w) 30370 | -1/Command | Crushed by falling debris 30375 | -1/Command | Spotted Striker 30376 | -1/Command | Spotted Investigator 30376 | -1/Command | Spotted Striker 30377 | -1/Command | Core integrity fell below 20% 30381 | -1/Command | Self-destructed Last Messages --------------- 30380_ I-47 Archangel stasis bubble strength at 160. 30380_ M-36 Artificer stasis bubble strength at 160. 30380_ Striker stasis bubble strength at 185. 30380_ H-88 Terminator stasis bubble strength at 108. 30380_ Y-72 Warden stasis bubble strength at 80. 30380_ Penetrated by Slug. 30380_ G-73 Enforcer stasis bubble strength at 108. 30380_ Held in stasis. 30380_ Investigator is analyzing... 30380_ E-15 Imp stasis bubble strength at 175. 30380_ B-74 Champion stasis bubble strength at 50. 30380_ G-73 Enforcer stasis bubble strength at 85. 30381_ I-47 Archangel stasis bubble strength at 170. Map ----- +----------------------------------------------------+ | # #??# #??????????????????# #????? | | ## #?########??????????????????# #????? | | ##?##???????????????????????????#######/#####????? | | ???????????????????????????????????#??# #??????#?? | | ??????????????????????????????????????# ##???????? | | ?????????????????????????????????????# #???#????? | | ??????????????????????????????????????#=#??#?????? | | ??????????????????????????????????????# #????????? | | ???????????????????????????????????#### #????????? | | ???????????????????????????????????# #????????? | | ???????????????????????????????????# #????????? | | ??????????????????BB????????????####+# ##??????#? | | ??????????????????BB????????????# # +???????? | | ????????????K?E?E???????????????# # #???????? | | ????????????????????????????????# + +???????? | | ????????????????????????????????#! # #???????? | | ????????????????????????????????# # #???????? | | ????????????????????????????????# # #???????? | | ????????????????????????????????###### #???????? | | ?????????????????????????????????# # #???????? | | ??????????7?K?E?E????????????????# # #???????? | | ??????????????????BB?????????????# # #???????? | | ??????????????????BB?????????????# # #???????? | | ?????????????????????????????????# # #???????? | | ????????????????????????#####????? # #???????? | | ????????????????????????#@ p#????? # #???????? | | ?????????????????########;bp#######+## #???????? | | ?????????????????# hbh %h #???????? | | ??????????? C C cgpgg #???????? | | ??????????? # gmKpK #???????? | | ?????????????????# gK%Yig ####### #???????? | | ?????????????????# bei #?????# #???????? | | ??????????????#### #?????# p#???????? | | ????????####### ## !== #?????# #???????? | | ????????# ! # != #?????# +???????? | | ????????# # != #?????? #???????? | | ????????#"" # ####+?? #???????? | | ????????#"" = # ???????? | | ????????#" == + ???????? | | ????????#"" # ??????? | | ????????#"" !###/##################### ??????? | | ????????# ! ## ??????????????????????????? | | ????????# ## #?????????????????????????? | | ????????########### #?????????????????????????? | | ??????????????????# #?????????????????????????? | | ??????????????????#! #?????????????????????????? | | ??????????????????# #?????????????????????????? | | ??????????????????# #?????????????????????????? | | ??????????????????# #?????????????????????????? | | ??????????????????# #?????????????????????????? | +----------------------------------------------------+ Best States ------------- Heat Dissipation 172 Energy Generation 92 Energy Capacity 1264 Matter Stores 300 Matter Capacity 300 Sight Range 16 Robot Scan Range 20 Terrain Scan Range 24 Terrain Scan Density 210 Base Temperature (-) 200 Armor Coverage 225 Resistance: TH 30 Resistance: EX 25 Resistance: EM 25 Weapon Shielding 66 Evasion (%) 72 Targeting Accuracy 12 Core Analysis 8 Armor Integrity Analysis 40 Recoil Reduction 7 Matter Filtering 50 Energy Filtering 50 Particle Charging 30 Kinecelleration 40 Offensive Hacking 26 Defensive Hacking 12 Authchip Count 4 Trap Extractor Capacity 8 Item Schematics ----------------- Huge Storage Unit | -9/Materials | Hacked Hcp. Storage Unit | -9/Materials | Hacked Hvy. Flak Cannon | -8/Recycling | Hacked Exp. Cooling System | -4/Factory | Scanalyzed Assault Drone Bay | -4/Zhirov | Free Exp. Heat Sink | -4/Zhirov | Free Exp. Optical Array | -4/Zhirov | Free Imp. Arc Thrower | -4/Zhirov | Free Robot Schematics ------------------ None Fabricated ------------ Hvy. Flak Cannon | x2 | -6/Factory | Authchip Hvy. Flak Cannon | x2 | -5/Factory | Authchip Alien Tech Used ----------------- Integrated Dissipator Transdimensional Reconstructor Achievements -------------- None Challenges ------------ None Game ------ Seed StealthSuspensionClaws Manual? 0 Play Time 06:06:53 Cumulative 317.8 hours Start 2025.02.28 @ 17:10:06 End 2025.03.01 @ 16:38:52 Sessions 7 Manual Loads 0 Difficulty Rogue Special Mode None Game No. 70 Rogue 70 Adventurer 0 Explorer 0 Win Type - Total 18 Types 11/1/3/1/0/0/0/1/1 Lore% 77 Gallery% 82 Achievement% 75 Wizard Run 0 Options --------- Layout 1 ASCII 0 Keyboard 0 Movement Mouse Keybinds 0 Fullscreen 1 Font 24/Smallcaps Map View 50x35 Zoom Use 0% Tactical HUD 1 Map Filters NONE Filters NONE Steam 1 RUN: e614c457-7ac3-4ed0-a9e2-d65c33a522c5